[Event "*** Titled Tuesday Blitz"]
[Site "Chess.com"]
[Date "2021.02.16"]
[Round "3"]
[White "lelya96"]
[Black "Taran2004"]
[Result "0-1"]
[WhiteElo "2233"]
[BlackElo "2413"]
[TimeControl "180+1"]
[EndTime "10:26:58 PST"]
[Termination "Taran2004 won by resignation"]

1. c4 {[%clk 0:03:00.9]} 1... Nf6 {[%clk 0:02:59.8]} 2. Nc3 {[%clk 0:03:00.2]}
2... g6 {[%clk 0:03:00.2]} 3. g3 {[%clk 0:02:59.6]} 3... Bg7 {[%clk 0:03:00.5]}
4. Bg2 {[%clk 0:02:59.9]} 4... O-O {[%clk 0:03:01.2]} 5. e4 {[%clk 0:02:59.4]}
5... d6 {[%clk 0:03:00.8]} 6. Nge2 {[%clk 0:02:58.9]} 6... c5 {[%clk 0:03:00.4]}
7. O-O {[%clk 0:02:58.3]} 7... Nc6 {[%clk 0:02:59.6]} 8. d4 {[%clk 0:02:58]}
8... cxd4 {[%clk 0:02:59.6]} 9. Nxd4 {[%clk 0:02:58.8]} 9... Nxd4 {[%clk
0:02:59.7]} 10. Qxd4 {[%clk 0:02:57.9]} 10... Be6 {[%clk 0:03:00.6]} 11. Rd1
{[%clk 0:02:28.4]} 11... Rc8 {[%clk 0:02:55.6]} 12. Bf1 {[%clk 0:02:24.1]} 12...
Qc7 {[%clk 0:02:55.8]} 13. Nb5 {[%clk 0:02:20.5]} 13... Qc5 {[%clk 0:02:51]} 14.
Qxc5 {[%clk 0:02:17.2]} 14... Rxc5 {[%clk 0:02:51.9]} 15. Be3 {[%clk 0:02:13.6]}
15... Rcc8 {[%clk 0:02:40.1]} 16. Nxa7 {[%clk 0:02:12.8]} 16... Ra8 {[%clk
0:02:40.1]} 17. f3 {[%clk 0:02:08.8]} 17... Nd7 {[%clk 0:02:40]} 18. Rd2 {[%clk
0:02:01.7]} 18... Ne5 {[%clk 0:02:38.7]} 19. Kg2 {[%clk 0:01:54.1]} 19... Bxc4
{[%clk 0:02:38.3]} 20. Rc1 {[%clk 0:01:45.5]} 20... Bxf1+ {[%clk 0:02:37.3]} 21.
Kxf1 {[%clk 0:01:43.1]} 21... Nxf3 {[%clk 0:02:37.5]} 22. Rdc2 {[%clk
0:01:36.9]} 22... Bd4 {[%clk 0:02:30.6]} 23. Bxd4 {[%clk 0:01:31.1]} 23... Nxd4
{[%clk 0:02:31.5]} 24. Rc4 {[%clk 0:01:31.5]} 24... Nf3 {[%clk 0:02:21.1]} 25.
Nb5 {[%clk 0:01:28.8]} 25... Nd2+ {[%clk 0:02:20.8]} 0-1

[Event "*** Titled Tuesday Blitz"]
[Site "Chess.com"]
[Date "2021.02.16"]
[Round "3"]
[White "gross-aleks"]
[Black "paulrusan"]
[Result "1-0"]
[WhiteElo "2574"]
[BlackElo "2255"]
[TimeControl "180+1"]
[EndTime "10:27:11 PST"]
[Termination "gross-aleks won by resignation"]

1. c4 {[%clk 0:03:00.9]} 1... Nf6 {[%clk 0:02:59.2]} 2. Nf3 {[%clk 0:03:00.1]}
2... g6 {[%clk 0:02:59.3]} 3. e3 {[%clk 0:03:00.3]} 3... Bg7 {[%clk 0:02:59.8]}
4. Nc3 {[%clk 0:03:00.3]} 4... d6 {[%clk 0:02:59.9]} 5. d4 {[%clk 0:03:00.6]}
5... O-O {[%clk 0:03:00.4]} 6. Be2 {[%clk 0:03:00.9]} 6... Nbd7 {[%clk 0:03:01]}
7. O-O {[%clk 0:03:00.1]} 7... e5 {[%clk 0:03:01.1]} 8. b4 {[%clk 0:02:55.7]}
8... Re8 {[%clk 0:02:59.9]} 9. Bb2 {[%clk 0:02:54.7]} 9... e4 {[%clk 0:02:59.2]}
10. Nd2 {[%clk 0:02:53.5]} 10... c6 {[%clk 0:02:59.4]} 11. Qb3 {[%clk
0:02:49.5]} 11... Nb6 {[%clk 0:02:52.3]} 12. a4 {[%clk 0:02:47.7]} 12... d5
{[%clk 0:02:52.3]} 13. b5 {[%clk 0:02:44.4]} 13... Be6 {[%clk 0:02:44.2]} 14. a5
{[%clk 0:02:42.5]} 14... Nbd7 {[%clk 0:02:44.2]} 15. Ba3 {[%clk 0:02:38.7]}
15... Rc8 {[%clk 0:02:32]} 16. a6 {[%clk 0:02:33]} 16... b6 {[%clk 0:02:31.2]}
17. bxc6 {[%clk 0:02:32]} 17... Nb8 {[%clk 0:02:08.5]} 18. cxd5 {[%clk
0:02:24.9]} 18... Nxd5 {[%clk 0:02:06.3]} 19. Nxd5 {[%clk 0:02:23.4]} 19... Bxd5
{[%clk 0:02:03.4]} 20. Bc4 {[%clk 0:02:21.9]} 20... Bxc4 {[%clk 0:02:02.9]} 21.
Nxc4 {[%clk 0:02:21.9]} 21... Nxc6 {[%clk 0:02:01.3]} 22. Nd6 {[%clk 0:02:20.9]}
22... Na5 {[%clk 0:01:53.2]} 23. Qxf7+ {[%clk 0:02:19.7]} 23... Kh8 {[%clk
0:01:52.1]} 24. Qxe8+ {[%clk 0:02:19.5]} 24... Qxe8 {[%clk 0:01:52.1]} 25. Nxe8
{[%clk 0:02:20.4]} 25... Rxe8 {[%clk 0:01:52.5]} 26. Rac1 {[%clk 0:02:20.4]}
26... h5 {[%clk 0:01:33.3]} 27. Bb4 {[%clk 0:02:18.3]} 27... Re7 {[%clk
0:01:26.7]} 28. Bxe7 {[%clk 0:02:16.7]} 1-0

[Event "*** Titled Tuesday Blitz"]
[Site "Chess.com"]
[Date "2021.02.16"]
[Round "3"]
[White "Alexander_Moskalenko"]
[Black "Skillcam"]
[Result "1-0"]
[WhiteElo "2770"]
[BlackElo "2505"]
[TimeControl "180+1"]
[EndTime "10:27:23 PST"]
[Termination "Alexander_Moskalenko won by resignation"]

1. e4 {[%clk 0:03:00.9]} 1... c5 {[%clk 0:02:59.7]} 2. f4 {[%clk 0:03:00.7]}
2... d5 {[%clk 0:02:59.2]} 3. exd5 {[%clk 0:03:00.1]} 3... Qxd5 {[%clk
0:03:00.1]} 4. Nc3 {[%clk 0:03:00.3]} 4... Qd8 {[%clk 0:02:57.9]} 5. Nf3 {[%clk
0:03:00.4]} 5... Nf6 {[%clk 0:02:58.5]} 6. Bc4 {[%clk 0:03:00.6]} 6... Nc6
{[%clk 0:02:49.6]} 7. O-O {[%clk 0:03:00.3]} 7... e6 {[%clk 0:02:49.8]} 8. d3
{[%clk 0:02:59.1]} 8... Be7 {[%clk 0:02:41.4]} 9. Bb3 {[%clk 0:02:41.7]} 9...
O-O {[%clk 0:02:34.4]} 10. Ne4 {[%clk 0:02:38.6]} 10... b6 {[%clk 0:02:31.6]}
11. c3 {[%clk 0:02:37.9]} 11... Bb7 {[%clk 0:02:31.4]} 12. Bc2 {[%clk
0:02:37.5]} 12... Qc7 {[%clk 0:02:12.5]} 13. Qe2 {[%clk 0:02:37.4]} 13... Rfd8
{[%clk 0:02:09.9]} 14. Bd2 {[%clk 0:02:35.1]} 14... Nd5 {[%clk 0:02:05.4]} 15.
Rae1 {[%clk 0:02:27.7]} 15... Re8 {[%clk 0:01:53]} 16. Bc1 {[%clk 0:02:26.5]}
16... Rad8 {[%clk 0:01:53]} 17. Nfg5 {[%clk 0:02:26.5]} 17... h6 {[%clk
0:01:46.7]} 18. Nxf7 {[%clk 0:02:26.5]} 18... Kxf7 {[%clk 0:01:46.8]} 19. f5
{[%clk 0:02:25.6]} 19... e5 {[%clk 0:01:46.9]} 20. Bxh6 {[%clk 0:02:22.1]} 20...
gxh6 {[%clk 0:01:41.8]} 21. Qh5+ {[%clk 0:02:21.8]} 21... Kg7 {[%clk 0:01:42.4]}
22. Qg6+ {[%clk 0:02:21.8]} 22... Kh8 {[%clk 0:01:40.5]} 23. Qxh6+ {[%clk
0:02:21.9]} 23... Kg8 {[%clk 0:01:41]} 24. f6 {[%clk 0:02:22]} 24... Bxf6 {[%clk
0:01:33.6]} 25. Nxf6+ {[%clk 0:02:21.9]} 25... Nxf6 {[%clk 0:01:34.5]} 26. Rxf6
{[%clk 0:02:22.2]} 26... Re7 {[%clk 0:01:26.9]} 27. Bb3+ {[%clk 0:02:21.6]} 1-0

[Event "*** Titled Tuesday Blitz"]
[Site "Chess.com"]
[Date "2021.02.16"]
[Round "3"]
[White "abeljusto"]
[Black "ChelsieMonica"]
[Result "0-1"]
[WhiteElo "2036"]
[BlackElo "2317"]
[TimeControl "180+1"]
[EndTime "10:27:32 PST"]
[Termination "ChelsieMonica won by resignation"]

1. d4 {[%clk 0:03:00.9]} 1... Nf6 {[%clk 0:02:42.7]} 2. Bf4 {[%clk 0:02:58.1]}
2... d6 {[%clk 0:02:38.9]} 3. Nc3 {[%clk 0:02:55.5]} 3... c6 {[%clk 0:02:38.8]}
4. e4 {[%clk 0:02:51.4]} 4... g6 {[%clk 0:02:38.3]} 5. Qd2 {[%clk 0:02:50.8]}
5... Bg7 {[%clk 0:02:37.9]} 6. Bh6 {[%clk 0:02:48.8]} 6... O-O {[%clk
0:02:37.4]} 7. h4 {[%clk 0:02:47.2]} 7... Qa5 {[%clk 0:02:33.4]} 8. h5 {[%clk
0:02:44.3]} 8... Nxh5 {[%clk 0:02:32.6]} 9. Bxg7 {[%clk 0:02:37.4]} 9... Kxg7
{[%clk 0:02:19.8]} 10. Be2 {[%clk 0:02:35.8]} 10... Rh8 {[%clk 0:02:12.6]} 11.
g4 {[%clk 0:02:31.5]} 11... Nf6 {[%clk 0:02:11.7]} 12. Qh6+ {[%clk 0:02:31.7]}
12... Kg8 {[%clk 0:02:10.5]} 13. f3 {[%clk 0:02:26.1]} 13... b5 {[%clk
0:02:01.6]} 14. Kf2 {[%clk 0:02:17.9]} 14... b4 {[%clk 0:02:00.1]} 15. Nd1
{[%clk 0:02:16.3]} 15... Ba6 {[%clk 0:01:57.5]} 16. Bxa6 {[%clk 0:02:10.8]}
16... Nxa6 {[%clk 0:01:58.4]} 17. Ne3 {[%clk 0:02:10.2]} 17... Nc7 {[%clk
0:01:56]} 18. Nh3 {[%clk 0:02:08.2]} 18... Ne6 {[%clk 0:01:55.1]} 19. Rad1
{[%clk 0:02:05.2]} 19... Qxa2 {[%clk 0:01:48.3]} 20. d5 {[%clk 0:02:02.9]} 20...
cxd5 {[%clk 0:01:47.4]} 21. exd5 {[%clk 0:02:03.8]} 21... Ng7 {[%clk 0:01:44.5]}
22. b3 {[%clk 0:01:58.2]} 22... Rc8 {[%clk 0:01:42.6]} 23. Ra1 {[%clk 0:01:51]}
23... Qb2 {[%clk 0:01:33.6]} 24. Rxa7 {[%clk 0:01:47.7]} 24... Qd4 {[%clk
0:01:33.1]} 25. Rc1 {[%clk 0:01:42.1]} 25... Qxa7 {[%clk 0:01:32]} 0-1

[Event "*** Titled Tuesday Blitz"]
[Site "Chess.com"]
[Date "2021.02.16"]
[Round "3"]
[White "Tenamu"]
[Black "ENajer77"]
[Result "0-1"]
[WhiteElo "2409"]
[BlackElo "2619"]
[TimeControl "180+1"]
[EndTime "10:27:33 PST"]
[Termination "ENajer77 won by resignation"]

1. e4 {[%clk 0:03:00.9]} 1... c6 {[%clk 0:02:58.8]} 2. d4 {[%clk 0:03:00.8]}
2... d5 {[%clk 0:02:56.5]} 3. exd5 {[%clk 0:03:01.1]} 3... cxd5 {[%clk
0:02:56.1]} 4. Nc3 {[%clk 0:03:01.7]} 4... Nc6 {[%clk 0:02:55.1]} 5. Bf4 {[%clk
0:03:01.7]} 5... a6 {[%clk 0:02:53.9]} 6. Nce2 {[%clk 0:03:01.3]} 6... Bg4
{[%clk 0:02:48.8]} 7. f3 {[%clk 0:03:01]} 7... Bd7 {[%clk 0:02:42.7]} 8. c3
{[%clk 0:03:00.6]} 8... f6 {[%clk 0:02:33.6]} 9. Bg3 {[%clk 0:02:43.8]} 9... e5
{[%clk 0:02:23.4]} 10. dxe5 {[%clk 0:02:42.5]} 10... fxe5 {[%clk 0:02:24]} 11.
Qxd5 {[%clk 0:02:39.9]} 11... Nf6 {[%clk 0:02:24.5]} 12. Qb3 {[%clk 0:02:39]}
12... Bc5 {[%clk 0:02:18.2]} 13. Bf2 {[%clk 0:02:06.8]} 13... Bxf2+ {[%clk
0:02:13.3]} 14. Kxf2 {[%clk 0:02:07.7]} 14... Qe7 {[%clk 0:02:09.3]} 15. Rd1
{[%clk 0:02:05.5]} 15... O-O-O {[%clk 0:02:00.4]} 16. Ng3 {[%clk 0:02:00.3]}
16... Be6 {[%clk 0:01:54.9]} 17. Rxd8+ {[%clk 0:01:56.8]} 17... Rxd8 {[%clk
0:01:54.1]} 18. Qc2 {[%clk 0:01:57.2]} 18... Qc5+ {[%clk 0:01:49.3]} 19. Ke1
{[%clk 0:01:53.5]} 19... Nb4 {[%clk 0:01:27]} 20. Qf2 {[%clk 0:01:41]} 20...
Rd1+ {[%clk 0:01:24]} 0-1

[Event "*** Titled Tuesday Blitz"]
[Site "Chess.com"]
[Date "2021.02.16"]
[Round "3"]
[White "PavelChernomordik"]
[Black "RaneshRatnesan"]
[Result "1-0"]
[WhiteElo "2372"]
[BlackElo "2191"]
[TimeControl "180+1"]
[EndTime "10:27:42 PST"]
[Termination "PavelChernomordik won by resignation"]

1. e4 {[%clk 0:03:00.9]} 1... c5 {[%clk 0:02:51.7]} 2. Nc3 {[%clk 0:03:00.3]}
2... a6 {[%clk 0:02:51.3]} 3. g3 {[%clk 0:02:59.6]} 3... b5 {[%clk 0:02:50.8]}
4. Bg2 {[%clk 0:02:59.5]} 4... Bb7 {[%clk 0:02:51.4]} 5. d3 {[%clk 0:02:59.2]}
5... e6 {[%clk 0:02:51]} 6. Qe2 {[%clk 0:02:58.8]} 6... Nc6 {[%clk 0:02:50.4]}
7. f4 {[%clk 0:02:57.2]} 7... Be7 {[%clk 0:02:50.4]} 8. Nf3 {[%clk 0:02:50.2]}
8... d5 {[%clk 0:02:46.1]} 9. O-O {[%clk 0:02:47.8]} 9... d4 {[%clk 0:02:41]}
10. Nd1 {[%clk 0:02:47]} 10... Nf6 {[%clk 0:02:41.5]} 11. Nf2 {[%clk 0:02:41.5]}
11... h5 {[%clk 0:02:39.5]} 12. e5 {[%clk 0:02:36.2]} 12... Nd5 {[%clk
0:02:39.3]} 13. Ne4 {[%clk 0:02:35.9]} 13... f6 {[%clk 0:02:24.5]} 14. exf6
{[%clk 0:02:28.9]} 14... gxf6 {[%clk 0:02:25.4]} 15. Bh3 {[%clk 0:02:22.5]}
15... Nc7 {[%clk 0:02:23.2]} 16. Nh4 {[%clk 0:02:15.6]} 16... Qd5 {[%clk
0:02:05.7]} 17. Ng6 {[%clk 0:02:13.1]} 17... Rh7 {[%clk 0:01:57.3]} 18. Nxe7
{[%clk 0:02:11.5]} 18... Kxe7 {[%clk 0:01:58.2]} 19. Bg2 {[%clk 0:02:09.2]}
19... Qf5 {[%clk 0:01:49.5]} 20. Bd2 {[%clk 0:02:00.1]} 20... Rg8 {[%clk
0:01:38.2]} 21. h3 {[%clk 0:01:50.7]} 21... Kf7 {[%clk 0:01:09.2]} 22. Nd6+
{[%clk 0:01:49.2]} 1-0

[Event "*** Titled Tuesday Blitz"]
[Site "Chess.com"]
[Date "2021.02.16"]
[Round "3"]
[White "maxip32"]
[Black "BJthechessgod"]
[Result "1-0"]
[WhiteElo "2507"]
[BlackElo "2283"]
[TimeControl "180+1"]
[EndTime "10:28:03 PST"]
[Termination "maxip32 won by resignation"]

1. e4 {[%clk 0:03:00.9]} 1... c5 {[%clk 0:02:59.8]} 2. Nf3 {[%clk 0:03:00.7]}
2... Nc6 {[%clk 0:03:00.1]} 3. d4 {[%clk 0:03:00]} 3... cxd4 {[%clk 0:03:00.6]}
4. Nxd4 {[%clk 0:03:00.9]} 4... e6 {[%clk 0:03:00.7]} 5. Nc3 {[%clk 0:02:58.6]}
5... Qc7 {[%clk 0:02:59.7]} 6. g3 {[%clk 0:02:51.3]} 6... a6 {[%clk 0:02:59.6]}
7. Bg2 {[%clk 0:02:49.1]} 7... Nf6 {[%clk 0:02:58.3]} 8. O-O {[%clk 0:02:45.8]}
8... Bc5 {[%clk 0:02:55.9]} 9. Nb3 {[%clk 0:02:40.2]} 9... Ba7 {[%clk
0:02:55.5]} 10. Qe2 {[%clk 0:02:39.4]} 10... O-O {[%clk 0:02:52.9]} 11. Be3
{[%clk 0:02:36.1]} 11... d6 {[%clk 0:02:37.4]} 12. Bxa7 {[%clk 0:02:34.7]} 12...
Rxa7 {[%clk 0:02:33.2]} 13. a4 {[%clk 0:02:19.4]} 13... b6 {[%clk 0:02:28.6]}
14. f4 {[%clk 0:02:12]} 14... Bb7 {[%clk 0:02:21.7]} 15. g4 {[%clk 0:02:08.2]}
15... h6 {[%clk 0:02:20.4]} 16. h4 {[%clk 0:02:07.4]} 16... Ne7 {[%clk
0:02:14.7]} 17. g5 {[%clk 0:02:04.4]} 17... hxg5 {[%clk 0:02:14.1]} 18. hxg5
{[%clk 0:02:01.7]} 18... Nd7 {[%clk 0:02:10.4]} 19. Rad1 {[%clk 0:01:45.4]}
19... Nc5 {[%clk 0:01:48.3]} 20. Nd4 {[%clk 0:01:41.6]} 20... e5 {[%clk
0:01:46.3]} 21. Nf5 {[%clk 0:01:37.8]} 21... Nxf5 {[%clk 0:01:44.8]} 22. exf5
{[%clk 0:01:38.3]} 22... Bxg2 {[%clk 0:01:42.6]} 23. Qxg2 {[%clk 0:01:39.2]}
23... exf4 {[%clk 0:01:18.5]} 24. Nd5 {[%clk 0:01:37.2]} 24... Qd7 {[%clk
0:01:09.1]} 25. Nf6+ {[%clk 0:01:33.6]} 25... gxf6 {[%clk 0:01:05.6]} 26. gxf6+
{[%clk 0:01:34.5]} 1-0

[Event "*** Titled Tuesday Blitz"]
[Site "Chess.com"]
[Date "2021.02.16"]
[Round "3"]
[White "SimplyDevina"]
[Black "Nbk90"]
[Result "0-1"]
[WhiteElo "2228"]
[BlackElo "2566"]
[TimeControl "180+1"]
[EndTime "10:28:05 PST"]
[Termination "Nbk90 won by resignation"]

1. d4 {[%clk 0:03:00.9]} 1... d6 {[%clk 0:03:00.1]} 2. Nf3 {[%clk 0:02:52.7]}
2... g6 {[%clk 0:02:59.6]} 3. c4 {[%clk 0:02:46.7]} 3... Bg7 {[%clk 0:02:59.1]}
4. Nc3 {[%clk 0:02:47.1]} 4... Nf6 {[%clk 0:02:59.7]} 5. e4 {[%clk 0:02:34.7]}
5... O-O {[%clk 0:02:59.7]} 6. Be2 {[%clk 0:02:33.7]} 6... e5 {[%clk 0:03:00.3]}
7. O-O {[%clk 0:02:29.4]} 7... Nc6 {[%clk 0:02:59.8]} 8. dxe5 {[%clk 0:02:00.9]}
8... dxe5 {[%clk 0:03:00.7]} 9. Bg5 {[%clk 0:01:47.2]} 9... h6 {[%clk
0:02:42.9]} 10. Bxf6 {[%clk 0:01:42]} 10... Bxf6 {[%clk 0:02:41]} 11. Qxd8
{[%clk 0:01:40.8]} 11... Bxd8 {[%clk 0:02:40.4]} 12. a3 {[%clk 0:01:19.5]} 12...
Be6 {[%clk 0:02:39.5]} 13. b4 {[%clk 0:00:55.8]} 13... a5 {[%clk 0:02:39.1]} 14.
b5 {[%clk 0:00:50.7]} 14... Nd4 {[%clk 0:02:36.6]} 15. Nd2 {[%clk 0:00:30.7]}
15... Bg5 {[%clk 0:02:29.9]} 16. Rfd1 {[%clk 0:00:17.2]} 16... Rfd8 {[%clk
0:02:28.8]} 17. Ra2 {[%clk 0:00:03.1]} 17... Nxe2+ {[%clk 0:02:26.1]} 18. Nxe2
{[%clk 0:00:04]} 18... Bxc4 {[%clk 0:02:26.5]} 19. Ng3 {[%clk 0:00:01.5]} 19...
Bxa2 {[%clk 0:02:25.9]} 0-1

[Event "*** Titled Tuesday Blitz"]
[Site "Chess.com"]
[Date "2021.02.16"]
[Round "3"]
[White "Genghis_K"]
[Black "guillembaches"]
[Result "1-0"]
[WhiteElo "2899"]
[BlackElo "2463"]
[TimeControl "180+1"]
[EndTime "10:28:08 PST"]
[Termination "Genghis_K won by resignation"]

1. d4 {[%clk 0:02:59.8]} 1... Nf6 {[%clk 0:03:00.2]} 2. c4 {[%clk 0:02:59.8]}
2... e6 {[%clk 0:03:00.6]} 3. Nc3 {[%clk 0:02:59.5]} 3... Bb4 {[%clk 0:03:00.1]}
4. Qc2 {[%clk 0:03:00.2]} 4... O-O {[%clk 0:02:59.8]} 5. e4 {[%clk 0:03:00]}
5... d5 {[%clk 0:02:59.9]} 6. e5 {[%clk 0:03:00.3]} 6... Ne4 {[%clk 0:03:00.2]}
7. Bd3 {[%clk 0:03:00.3]} 7... c5 {[%clk 0:03:00.3]} 8. Nf3 {[%clk 0:03:00.8]}
8... Bxc3+ {[%clk 0:02:37.4]} 9. bxc3 {[%clk 0:03:00.1]} 9... cxd4 {[%clk
0:02:35.6]} 10. cxd4 {[%clk 0:02:49]} 10... Qa5+ {[%clk 0:02:29.2]} 11. Kf1
{[%clk 0:02:47.1]} 11... f5 {[%clk 0:02:24.4]} 12. exf6 {[%clk 0:02:44.4]} 12...
Rxf6 {[%clk 0:02:21.8]} 13. cxd5 {[%clk 0:02:35.6]} 13... Nd6 {[%clk 0:01:41.8]}
14. Bxh7+ {[%clk 0:02:27.7]} 14... Kh8 {[%clk 0:01:40.6]} 15. Bg5 {[%clk
0:02:25.1]} 15... Rf8 {[%clk 0:01:36.1]} 16. Be7 {[%clk 0:02:22.8]} 16... Re8
{[%clk 0:01:23.5]} 17. Bxd6 {[%clk 0:02:10]} 17... Qa6+ {[%clk 0:01:23.8]} 18.
Qd3 {[%clk 0:01:55.8]} 18... Qxd6 {[%clk 0:01:23]} 19. Ne5 {[%clk 0:01:55.7]}
1-0

[Event "*** Titled Tuesday Blitz"]
[Site "Chess.com"]
[Date "2021.02.16"]
[Round "3"]
[White "Grammnik"]
[Black "bait_or_mate"]
[Result "0-1"]
[WhiteElo "2374"]
[BlackElo "2560"]
[TimeControl "180+1"]
[EndTime "10:28:16 PST"]
[Termination "bait_or_mate won by resignation"]

1. d4 {[%clk 0:03:00.9]} 1... Nf6 {[%clk 0:02:59.6]} 2. Nf3 {[%clk 0:03:01.3]}
2... d5 {[%clk 0:02:59.5]} 3. c4 {[%clk 0:03:01.3]} 3... e6 {[%clk 0:03:00.1]}
4. Nc3 {[%clk 0:03:00.8]} 4... a6 {[%clk 0:03:00.6]} 5. Bg5 {[%clk 0:02:51.2]}
5... dxc4 {[%clk 0:02:53.7]} 6. e4 {[%clk 0:02:50.7]} 6... b5 {[%clk 0:02:50.7]}
7. e5 {[%clk 0:02:50.2]} 7... h6 {[%clk 0:02:50.2]} 8. Bh4 {[%clk 0:02:50.1]}
8... g5 {[%clk 0:02:50.4]} 9. Nxg5 {[%clk 0:02:49.9]} 9... hxg5 {[%clk
0:02:51.3]} 10. Bxg5 {[%clk 0:02:50.5]} 10... Nbd7 {[%clk 0:02:45.2]} 11. exf6
{[%clk 0:02:50]} 11... Bb7 {[%clk 0:02:41.6]} 12. d5 {[%clk 0:02:44.9]} 12...
Nc5 {[%clk 0:02:24.2]} 13. Be2 {[%clk 0:02:27.7]} 13... exd5 {[%clk 0:02:13.1]}
14. O-O {[%clk 0:02:23.1]} 14... Qd6 {[%clk 0:02:08.9]} 15. g3 {[%clk
0:02:21.5]} 15... O-O-O {[%clk 0:02:05.7]} 16. Bf3 {[%clk 0:02:16.2]} 16... d4
{[%clk 0:02:03.5]} 17. Bxb7+ {[%clk 0:02:13.8]} 17... Kxb7 {[%clk 0:02:00.6]}
18. Ne2 {[%clk 0:02:11.3]} 18... Bh6 {[%clk 0:01:54]} 19. Bf4 {[%clk 0:02:04.4]}
19... Bxf4 {[%clk 0:01:51.2]} 20. Nxf4 {[%clk 0:02:05.3]} 20... Qxf6 {[%clk
0:01:48.7]} 21. a4 {[%clk 0:01:59]} 21... Nxa4 {[%clk 0:01:44.6]} 22. Rxa4
{[%clk 0:01:57.8]} 22... bxa4 {[%clk 0:01:45.5]} 23. Qxa4 {[%clk 0:01:57.8]}
23... Qc6 {[%clk 0:01:41.8]} 24. Qb4+ {[%clk 0:01:57.3]} 24... Qb5 {[%clk
0:01:40.1]} 25. Qe7 {[%clk 0:01:56.1]} 25... d3 {[%clk 0:01:24.9]} 26. Qxf7
{[%clk 0:01:52]} 26... d2 {[%clk 0:01:23]} 27. Ne6 {[%clk 0:01:50.5]} 27... d1=Q
{[%clk 0:01:06.1]} 28. Qxc7+ {[%clk 0:01:47.9]} 28... Ka8 {[%clk 0:01:06.3]} 29.
Nxd8 {[%clk 0:01:39.1]} 29... Qxd8 {[%clk 0:01:00.8]} 0-1

[Event "*** Titled Tuesday Blitz"]
[Site "Chess.com"]
[Date "2021.02.16"]
[Round "3"]
[White "BursaBBSatranc"]
[Black "A-Fier"]
[Result "0-1"]
[WhiteElo "2601"]
[BlackElo "2810"]
[TimeControl "180+1"]
[EndTime "10:28:22 PST"]
[Termination "A-Fier won by resignation"]

1. d4 {[%clk 0:03:00.9]} 1... Nf6 {[%clk 0:03:00]} 2. Nf3 {[%clk 0:03:00.7]}
2... e6 {[%clk 0:02:59.7]} 3. Bf4 {[%clk 0:03:01.1]} 3... c5 {[%clk 0:02:59.3]}
4. e3 {[%clk 0:03:00.3]} 4... Nc6 {[%clk 0:02:58.4]} 5. Nbd2 {[%clk 0:02:55.9]}
5... cxd4 {[%clk 0:02:58.4]} 6. exd4 {[%clk 0:02:56]} 6... d5 {[%clk 0:02:59]}
7. c3 {[%clk 0:02:52.5]} 7... Nh5 {[%clk 0:02:58.4]} 8. Bg3 {[%clk 0:02:46.7]}
8... g6 {[%clk 0:02:56.3]} 9. Bd3 {[%clk 0:02:46.1]} 9... Be7 {[%clk 0:02:56.3]}
10. Qe2 {[%clk 0:02:46.1]} 10... Bd7 {[%clk 0:02:56.3]} 11. Ne5 {[%clk
0:02:33.6]} 11... Nxe5 {[%clk 0:02:52.1]} 12. Bxe5 {[%clk 0:02:33.3]} 12... f6
{[%clk 0:02:52.3]} 13. Bg3 {[%clk 0:02:30.2]} 13... Rc8 {[%clk 0:02:51]} 14. O-O
{[%clk 0:01:43.8]} 14... Nxg3 {[%clk 0:02:48.4]} 15. hxg3 {[%clk 0:01:41]} 15...
O-O {[%clk 0:02:48.7]} 16. f4 {[%clk 0:01:35.1]} 16... Bd6 {[%clk 0:02:43]} 17.
a4 {[%clk 0:01:23.2]} 17... a6 {[%clk 0:02:38.9]} 18. Nf3 {[%clk 0:01:21.9]}
18... Qc7 {[%clk 0:02:37.2]} 19. a5 {[%clk 0:01:10]} 19... Rce8 {[%clk
0:02:32.9]} 20. c4 {[%clk 0:01:05.8]} 20... dxc4 {[%clk 0:02:30.4]} 21. Bxc4
{[%clk 0:01:06.7]} 21... Kg7 {[%clk 0:02:30.7]} 22. b3 {[%clk 0:01:01.2]} 22...
Bc6 {[%clk 0:02:29]} 23. Rfe1 {[%clk 0:00:53.6]} 23... Bb4 {[%clk 0:02:21.8]}
24. Red1 {[%clk 0:00:51.9]} 24... Bxa5 {[%clk 0:02:20.8]} 25. g4 {[%clk
0:00:32.9]} 25... Bb6 {[%clk 0:02:18.1]} 26. g5 {[%clk 0:00:32.9]} 26... Qxf4
{[%clk 0:02:17.8]} 27. gxf6+ {[%clk 0:00:31.4]} 27... Rxf6 {[%clk 0:02:15.8]}
0-1

[Event "*** Titled Tuesday Blitz"]
[Site "Chess.com"]
[Date "2021.02.16"]
[Round "3"]
[White "catzapto"]
[Black "AsaHoffmann"]
[Result "0-1"]
[WhiteElo "2107"]
[BlackElo "2341"]
[TimeControl "180+1"]
[EndTime "10:28:25 PST"]
[Termination "AsaHoffmann won by checkmate"]

1. e4 {[%clk 0:02:12.1]} 1... d6 {[%clk 0:02:58.4]} 2. Nf3 {[%clk 0:02:11.5]}
2... Bg4 {[%clk 0:02:57.2]} 3. Nc3 {[%clk 0:02:10.7]} 3... c6 {[%clk 0:02:55.5]}
4. Bc4 {[%clk 0:02:10.5]} 4... e6 {[%clk 0:02:54.4]} 5. d4 {[%clk 0:02:07.9]}
5... d5 {[%clk 0:02:53.5]} 6. exd5 {[%clk 0:02:07.2]} 6... cxd5 {[%clk
0:02:53.5]} 7. Bb5+ {[%clk 0:02:07.5]} 7... Nc6 {[%clk 0:02:53.5]} 8. h3 {[%clk
0:02:02.3]} 8... Bh5 {[%clk 0:02:52.9]} 9. g4 {[%clk 0:02:00.5]} 9... Bg6 {[%clk
0:02:52.6]} 10. Ne5 {[%clk 0:02:00.7]} 10... Rc8 {[%clk 0:02:51.4]} 11. Bf4
{[%clk 0:01:45.6]} 11... Bd6 {[%clk 0:02:48.8]} 12. Qd2 {[%clk 0:01:38.2]} 12...
Nf6 {[%clk 0:02:47.1]} 13. f3 {[%clk 0:01:31.7]} 13... O-O {[%clk 0:02:38]} 14.
Nxg6 {[%clk 0:01:31.2]} 14... hxg6 {[%clk 0:02:36.3]} 15. O-O-O {[%clk 0:01:26]}
15... Bb4 {[%clk 0:02:27.6]} 16. Qd3 {[%clk 0:00:57.4]} 16... Qa5 {[%clk
0:02:25.6]} 17. Bg5 {[%clk 0:00:45.2]} 17... Bxc3 {[%clk 0:02:23.3]} 18. bxc3
{[%clk 0:00:42.7]} 18... a6 {[%clk 0:02:02.3]} 19. Bxc6 {[%clk 0:00:41]} 19...
Rxc6 {[%clk 0:02:02.1]} 20. Bd2 {[%clk 0:00:20.5]} 20... Qa3+ {[%clk 0:01:58.6]}
21. Kb1 {[%clk 0:00:17.5]} 21... Rb6+ {[%clk 0:01:56.5]} 22. Ka1 {[%clk
0:00:17.5]} 22... Qb2# {[%clk 0:01:55.9]} 0-1